fUSD/lending_fUSD_20260525
["ID","MTS","AMOUNT","RATE_DAILY","PERIOD"]
[422985641,1779711039000,-165.31,0.00012932,2]
[422985649,1779711039000,-10092.57380925,0.00013352,2]
[422985688,1779711040000,-500.0,0.00013452,5]
[422985691,1779711040000,-500.0,0.00013452,5]
[422985692,1779711040000,-500.0,0.00013452,5]
[422985690,1779711040000,-500.0,0.00013452,5]
[422985689,1779711040000,-500.0,0.00013452,5]
[422985683,1779711040000,-500.0,0.00013452,5]
[422985687,1779711040000,-500.0,0.00013452,5]
[422985684,1779711040000,-500.0,0.00013452,5]
[422985685,1779711040000,-169.00270148,0.00013452,5]
[422985693,1779711040000,-500.0,0.00013452,5]
[422985686,1779711040000,-500.55843501,0.00013452,5]
[422985694,1779711040000,-500.0,0.00013452,5]
[422985700,1779711040000,-500.57071091,0.00013452,5]
[422985695,1779711040000,-500.0,0.00013452,5]
[422985697,1779711040000,-500.0,0.00013452,5]
[422985699,1779711040000,-500.0,0.00013452,5]
[422985698,1779711040000,-505.7497438,0.00013452,5]
[422985676,1779711040000,-500.0,0.0001345,2]
[422985701,1779711040000,-500.0,0.00013452,5]
[422985702,1779711040000,-675.0,0.00013452,5]
[422985704,1779711040000,-675.0,0.00013452,5]
[422985703,1779711040000,-500.0,0.00013452,5]
[422985705,1779711040000,-675.0,0.00013452,5]
[422985708,1779711040000,-500.0,0.00013452,5]
[422985707,1779711040000,-500.0,0.00013452,5]
[422985696,1779711040000,-500.0,0.00013452,5]
[422985682,1779711040000,-500.0,0.0001345,2]
[422985675,1779711040000,-384.30403872,0.0001345,2]
[422985681,1779711040000,-500.0,0.0001345,2]
[422985709,1779711040000,-675.0,0.00013452,5]
[422985654,1779711040000,-626.0,0.00013376,2]
[422985656,1779711040000,-928.0,0.00013376,2]
[422985655,1779711040000,-1355.0,0.00013376,2]
[422985658,1779711040000,-812.76718026,0.00013376,2]
[422985660,1779711040000,-155.86181988,0.00013377,2]
[422985657,1779711040000,-458.23281974,0.00013376,2]
[422985659,1779711040000,-1227.971,0.00013376,2]
[422985661,1779711040000,-6924.81896082,0.00013377,2]
[422985662,1779711040000,-1589.0,0.000134,2]
[422985663,1779711040000,-1589.0,0.000134,2]
[422985664,1779711040000,-163.0,0.000134,2]
[422985667,1779711040000,-208.87966228,0.00013404,2]
[422985668,1779711040000,-160.0,0.00013407,2]
[422985666,1779711040000,-2316.0,0.000134,2]
[422985665,1779711040000,-2316.0,0.000134,2]
[422985670,1779711040000,-500.0,0.0001345,2]
[422985671,1779711040000,-500.0,0.0001345,2]
[422985669,1779711040000,-223.30556851,0.0001345,2]
[422985674,1779711040000,-500.0,0.0001345,2]
[422985672,1779711040000,-500.0,0.0001345,2]
[422985673,1779711040000,-500.0,0.0001345,2]
[422985679,1779711040000,-500.0,0.0001345,2]
[422985680,1779711040000,-500.0,0.0001345,2]
[422985677,1779711040000,-500.0,0.0001345,2]
[422985678,1779711040000,-500.0,0.0001345,2]
[422985711,1779711040000,-150.0,0.00013452,5]
[422985706,1779711040000,-675.0,0.00013452,5]
[422985712,1779711040000,-500.0,0.00013452,5]
[422985754,1779711040000,-500.0,0.00013452,5]
[422985760,1779711040000,-500.0,0.00013452,5]
[422985762,1779711040000,-675.0,0.00013452,5]
[422985765,1779711040000,-500.0,0.00013452,5]
[422985767,1779711040000,-500.0,0.00013452,5]
[422985778,1779711040000,-482.0,0.00013452,5]
[422985782,1779711040000,-482.0,0.00013452,5]
[422985780,1779711040000,-675.0,0.00013452,5]
[422985773,1779711040000,-504.64553665,0.00013452,5]
[422985771,1779711040000,-675.0,0.00013452,5]
[422985784,1779711040000,-482.0,0.00013452,5]
[422985769,1779711040000,-569.87645658,0.00013452,5]
[422985775,1779711040000,-482.0,0.00013452,5]
[422985786,1779711040000,-482.0,0.00013452,5]
[422985788,1779711040000,-482.0,0.00013452,5]
[422985790,1779711040000,-675.0,0.00013452,5]
[422985793,1779711040000,-482.0,0.00013452,5]
[422985801,1779711040000,-482.0,0.00013452,5]
[422985802,1779711040000,-742.0,0.00013452,5]
[422985794,1779711040000,-482.0,0.00013452,5]
[422985804,1779711040000,-435.0,0.00013452,2]
[422985803,1779711040000,-482.0,0.00013452,5]
[422985796,1779711040000,-742.0,0.00013452,5]
[422985798,1779711040000,-482.0,0.00013452,5]
[422985800,1779711040000,-742.0,0.00013452,5]
[422985750,1779711040000,-500.0,0.00013452,5]
[422985756,1779711040000,-501.07256824,0.00013452,5]
[422985710,1779711040000,-500.0,0.00013452,5]
[422985740,1779711040000,-500.0,0.00013452,5]
[422985752,1779711040000,-500.0,0.00013452,5]
[422985713,1779711040000,-150.0,0.00013452,5]
[422985714,1779711040000,-500.0,0.00013452,5]
[422985715,1779711040000,-675.0,0.00013452,5]
[422985717,1779711040000,-154.33010067,0.00013452,5]
[422985716,1779711040000,-500.0,0.00013452,5]
[422985805,1779711040000,-742.0,0.00013452,5]
[422985718,1779711040000,-675.0,0.00013452,5]
[422985720,1779711040000,-207.06787103,0.00013452,5]
[422985722,1779711040000,-675.0,0.00013452,5]
[422985732,1779711040000,-675.0,0.00013452,5]
[422985721,1779711040000,-500.0,0.00013452,5]
[422985723,1779711040000,-500.0,0.00013452,5]
[422985719,1779711040000,-500.0,0.00013452,5]
[422985725,1779711040000,-500.0,0.00013452,5]
[422985724,1779711040000,-500.0,0.00013452,5]
[422985758,1779711040000,-675.0,0.00013452,5]
[422985748,1779711040000,-675.0,0.00013452,5]
[422985742,1779711040000,-500.0,0.00013452,5]
[422985738,1779711040000,-675.0,0.00013452,5]
[422985744,1779711040000,-675.0,0.00013452,5]
[422985734,1779711040000,-500.0,0.00013452,5]
[422985746,1779711040000,-500.0,0.00013452,5]
[422985727,1779711040000,-500.0,0.00013452,5]
[422985726,1779711040000,-675.0,0.00013452,5]
[422985730,1779711040000,-500.0,0.00013452,5]
[422985736,1779711040000,-500.0,0.00013452,5]
[422985843,1779711041000,-226.18441098,0.00013452,5]
[422985845,1779711041000,-482.0,0.00013452,5]
[422985846,1779711041000,-742.0,0.00013452,5]
[422985844,1779711041000,-435.0,0.00013452,2]
[422985837,1779711041000,-435.0,0.00013452,2]
[422985838,1779711041000,-742.0,0.00013452,5]
[422985836,1779711041000,-500.0,0.00013452,5]
[422985840,1779711041000,-435.0,0.00013452,2]
[422985839,1779711041000,-500.0,0.00013452,5]
[422985847,1779711041000,-435.0,0.00013452,2]
[422985842,1779711041000,-742.0,0.00013452,5]
[422985850,1779711041000,-742.0,0.00013452,5]
[422985864,1779711041000,-435.0,0.00013452,2]
[422985851,1779711041000,-500.0,0.00013452,5]
[422985852,1779711041000,-435.0,0.00013452,2]
[422985853,1779711041000,-500.0,0.00013452,5]
[422985849,1779711041000,-435.0,0.00013452,2]
[422985855,1779711041000,-482.0,0.00013452,5]
[422985854,1779711041000,-500.0,0.00013452,5]
[422985856,1779711041000,-500.0,0.00013452,5]
[422985857,1779711041000,-435.0,0.00013452,2]
[422985859,1779711041000,-742.0,0.00013452,5]
[422985858,1779711041000,-675.0,0.00013452,5]
[422985860,1779711041000,-500.0,0.00013452,5]
[422985835,1779711041000,-675.0,0.00013452,5]
[422985848,1779711041000,-435.0,0.00013452,2]
[422985834,1779711041000,-742.0,0.00013452,5]
[422985820,1779711041000,-435.0,0.00013452,2]
[422985833,1779711041000,-435.0,0.00013452,2]
[422985862,1779711041000,-500.0,0.00013452,5]
[422985806,1779711041000,-482.0,0.00013452,5]
[422985807,1779711041000,-675.0,0.00013452,5]
[422985813,1779711041000,-435.0,0.00013452,2]
[422985810,1779711041000,-435.0,0.00013452,2]
[422985808,1779711041000,-742.0,0.00013452,5]
[422985814,1779711041000,-742.0,0.00013452,5]
[422985809,1779711041000,-482.0,0.00013452,5]
[422985812,1779711041000,-482.0,0.00013452,5]
[422985811,1779711041000,-742.0,0.00013452,5]
[422985816,1779711041000,-435.0,0.00013452,2]
[422985815,1779711041000,-482.0,0.00013452,5]
[422985832,1779711041000,-500.0,0.00013452,5]
[422985819,1779711041000,-482.0,0.00013452,5]
[422985818,1779711041000,-742.0,0.00013452,5]
[422985823,1779711041000,-435.0,0.00013452,2]
[422985822,1779711041000,-500.0,0.00013452,5]
[422985825,1779711041000,-500.0,0.00013452,5]
[422985829,1779711041000,-482.0,0.00013452,5]
[422985826,1779711041000,-435.0,0.00013452,2]
[422985824,1779711041000,-742.0,0.00013452,5]
[422985821,1779711041000,-742.0,0.00013452,5]
[422985828,1779711041000,-500.0,0.00013452,5]
[422985827,1779711041000,-742.0,0.00013452,5]
[422985830,1779711041000,-435.0,0.00013452,2]
[422985831,1779711041000,-742.0,0.00013452,5]
[422985817,1779711041000,-500.0,0.00013452,5]
[422985861,1779711041000,-500.0,0.00013452,5]
[422985863,1779711041000,-500.0,0.00013452,5]
[422985865,1779711041000,-500.0,0.00013452,5]
[422985897,1779711041000,-500.0,0.00013452,5]
[422985898,1779711041000,-500.0,0.00013452,5]
[422985899,1779711041000,-167.99592479,0.00013452,5]
[422985900,1779711041000,-490.69812666,0.00013452,5]
[422985902,1779711041000,-500.0,0.00013452,5]
[422985901,1779711041000,-500.0,0.00013452,5]
[422985903,1779711041000,-500.0,0.00013452,5]
[422985905,1779711041000,-500.0,0.00013452,5]
[422985909,1779711041000,-500.0,0.00013452,5]
[422985906,1779711041000,-500.0,0.00013452,5]
[422985907,1779711041000,-500.0,0.00013452,5]
[422985904,1779711041000,-754.0,0.00013452,5]
[422985910,1779711041000,-500.0,0.00013452,5]
[422985911,1779711041000,-500.0,0.00013452,5]
[422985912,1779711041000,-500.0,0.00013452,5]
[422985913,1779711041000,-500.0,0.00013452,5]
[422985914,1779711041000,-500.83413808,0.00013452,5]
[422985917,1779711041000,-207.92383891,0.00013452,5]
[422985916,1779711041000,-150.0,0.00013452,5]
[422985915,1779711041000,-150.0,0.00013452,5]
[422985922,1779711041000,-420.98968918,0.00013452,5]
[422985920,1779711041000,-500.0,0.00013452,5]
[422985923,1779711041000,-150.0,0.00013452,2]
[422985918,1779711041000,-500.0,0.00013452,5]
[422985919,1779711041000,-150.0,0.00013452,5]
[422985866,1779711041000,-500.0,0.00013452,5]
[422985921,1779711041000,-150.0,0.00013452,5]
[422985893,1779711041000,-500.0,0.00013452,5]
[422985895,1779711041000,-500.0,0.00013452,5]
[422985908,1779711041000,-451.30360382,0.00013452,2]
[422985892,1779711041000,-500.0,0.00013452,5]
[422985896,1779711041000,-435.0,0.00013452,2]
[422985869,1779711041000,-482.0,0.00013452,5]
[422985870,1779711041000,-500.0,0.00013452,5]
[422985867,1779711041000,-500.0,0.00013452,5]
[422985876,1779711041000,-500.0,0.00013452,5]
[422985871,1779711041000,-500.0,0.00013452,5]
[422985875,1779711041000,-675.0,0.00013452,5]
[422985872,1779711041000,-500.0,0.00013452,5]
[422985874,1779711041000,-500.0,0.00013452,5]
[422985873,1779711041000,-435.0,0.00013452,2]
[422985878,1779711041000,-500.0,0.00013452,5]
[422985877,1779711041000,-742.0,0.00013452,5]
[422985879,1779711041000,-482.0,0.00013452,5]
[422985868,1779711041000,-742.0,0.00013452,5]
[422985883,1779711041000,-675.0,0.00013452,5]
[422985882,1779711041000,-742.0,0.00013452,5]
[422985890,1779711041000,-482.0,0.00013452,5]
[422985891,1779711041000,-742.0,0.00013452,5]
[422985889,1779711041000,-694.11068258,0.00013452,5]
[422985888,1779711041000,-435.0,0.00013452,2]
[422985887,1779711041000,-742.0,0.00013452,5]
[422985894,1779711041000,-500.0,0.00013452,5]
[422985884,1779711041000,-405.00866086,0.00013452,5]
[422985881,1779711041000,-500.0,0.00013452,5]
[422985885,1779711041000,-435.0,0.00013452,2]
[422985886,1779711041000,-482.0,0.00013452,5]
[422985880,1779711041000,-435.0,0.00013452,2]
[422985968,1779711042000,-1246.0,0.00013699,5]
[422985969,1779711042000,-1246.0,0.00013699,5]
[422985965,1779711042000,-370.65417125,0.00013699,2]
[422985984,1779711042000,-1246.0,0.00013699,5]
[422985964,1779711042000,-933.69403119,0.00013699,2]
[422985957,1779711042000,-600.0,0.000136,4]
[422985961,1779711042000,-200.0,0.00013699,2]
[422985959,1779711042000,-10092.57380919,0.00013696,2]
[422985958,1779711042000,-7080.6807807,0.00013631,2]
[422985956,1779711042000,-1179.25605004,0.00013529,2]
[422985966,1779711042000,-1246.0,0.00013699,5]
[422985960,1779711042000,-166.66,0.00013699,2]
[422985967,1779711042000,-1246.0,0.00013699,5]
[422985972,1779711042000,-1246.0,0.00013699,5]
[422985974,1779711042000,-1246.0,0.00013699,5]
[422985973,1779711042000,-1246.0,0.00013699,5]
[422985971,1779711042000,-1246.0,0.00013699,5]
[422985976,1779711042000,-1246.0,0.00013699,5]
[422985975,1779711042000,-1246.0,0.00013699,5]
[422985978,1779711042000,-1246.0,0.00013699,5]
[422985977,1779711042000,-1246.0,0.00013699,5]
[422985980,1779711042000,-1246.0,0.00013699,5]
[422985982,1779711042000,-1246.0,0.00013699,5]
[422985981,1779711042000,-1246.0,0.00013699,5]
[422985979,1779711042000,-1246.0,0.00013699,5]
[422985954,1779711042000,-10092.57380919,0.00013524,2]
[422985970,1779711042000,-1246.0,0.00013699,5]
[422985963,1779711042000,-827.18086267,0.00013699,2]
[422985924,1779711042000,-150.0,0.00013452,5]
[422985962,1779711042000,-263.39072739,0.00013699,2]
[422985986,1779711042000,-1246.0,0.00013699,5]
[422985926,1779711042000,-500.0,0.00013452,5]
[422985925,1779711042000,-500.0,0.00013452,5]
[422985927,1779711042000,-150.0,0.00013452,5]
[422985928,1779711042000,-500.0,0.00013452,5]
[422985929,1779711042000,-500.0,0.00013452,5]
[422985931,1779711042000,-192.52430018,0.00013452,5]
[422985933,1779711042000,-500.0,0.00013452,5]
[422985932,1779711042000,-500.0,0.00013452,5]
[422985936,1779711042000,-502.58686962,0.00013452,5]
[422985930,1779711042000,-500.0,0.00013452,5]
[422985935,1779711042000,-500.0,0.00013452,5]
[422985934,1779711042000,-500.0,0.00013452,5]
[422985938,1779711042000,-151.0,0.00013452,2]
[422985937,1779711042000,-420.35412542,0.00013452,5]
[422985940,1779711042000,-260.783653,0.00013452,2]
[422985941,1779711042000,-150.0,0.00013488,2]
[422985939,1779711042000,-151.0,0.00013452,2]
[422985942,1779711042000,-251.37092639,0.00013488,2]
[422985945,1779711042000,-150.0,0.00013488,2]
[422985946,1779711042000,-150.0,0.00013488,2]
[422985943,1779711042000,-150.0,0.00013488,2]
[422985944,1779711042000,-150.0,0.00013488,2]
[422985948,1779711042000,-150.0,0.00013488,2]
[422985947,1779711042000,-150.0,0.00013488,2]
[422985949,1779711042000,-150.0,0.00013488,2]
[422985952,1779711042000,-150.0,0.00013488,2]
[422985951,1779711042000,-150.0,0.00013488,2]
[422985983,1779711042000,-1246.0,0.00013699,5]
[422985950,1779711042000,-150.0,0.00013488,2]
[422985987,1779711042000,-1246.0,0.00013699,5]
[422986028,1779711042000,-1589.0,0.0001404,2]
[422986031,1779711042000,-2316.0,0.0001404,2]
[422986024,1779711042000,-1923.622,0.00013987,2]
[422986029,1779711042000,-163.0,0.0001404,2]
[422986026,1779711042000,-505.26668046,0.0001399,2]
[422986034,1779711042000,-500.0,0.00014075,2]
[422986032,1779711042000,-10092.57380919,0.0001404,2]
[422986036,1779711042000,-500.0,0.00014075,2]
[422986035,1779711042000,-500.0,0.00014075,2]
[422986037,1779711042000,-500.0,0.00014075,2]
[422986033,1779711042000,-295.22359984,0.00014066,2]
[422986043,1779711042000,-500.0,0.00014075,2]
[422986038,1779711042000,-413.0802572,0.00014075,2]
[422986042,1779711042000,-500.0,0.00014075,2]
[422986041,1779711042000,-224.86476407,0.00014075,2]
[422986039,1779711042000,-500.0,0.00014075,2]
[422986040,1779711042000,-500.0,0.00014075,2]
[422986044,1779711042000,-500.0,0.00014075,2]
[422986048,1779711042000,-554.06567151,0.00014075,2]
[422986047,1779711042000,-341.07411956,0.00014075,2]
[422986049,1779711042000,-195.84112978,0.00014075,2]
[422986050,1779711042000,-500.0,0.00014075,2]
[422986046,1779711042000,-383.19491892,0.00014075,2]
[422986051,1779711042000,-500.0,0.00014075,2]
[422986053,1779711042000,-500.0,0.00014075,2]
[422986052,1779711042000,-500.0,0.00014075,2]
[422985988,1779711042000,-1246.0,0.00013699,5]
[422986023,1779711042000,-1179.25605004,0.00013986,2]
[422986030,1779711042000,-163.0,0.0001404,2]
[422986045,1779711042000,-500.0,0.00014075,2]
[422986027,1779711042000,-250.0,0.00014,2]
[422985989,1779711042000,-1247.60551705,0.00013699,5]
[422985990,1779711042000,-1300.0,0.000137,5]
[422985991,1779711042000,-150.0,0.00013702,2]
[422985994,1779711042000,-2316.0,0.0001372,2]
[422985995,1779711042000,-2316.0,0.0001372,2]
[422986002,1779711042000,-162.74,0.0001383,2]
[422985992,1779711042000,-1589.0,0.0001372,2]
[422985996,1779711042000,-1179.25605004,0.00013757,2]
[422985985,1779711042000,-1246.0,0.00013699,5]
[422986001,1779711042000,-150.0,0.00013814,2]
[422986000,1779711042000,-1900.0,0.000138,5]
[422986003,1779711042000,-166.66,0.00013836,2]
[422986004,1779711042000,-150.0,0.00013862,2]
[422985998,1779711042000,-163.57297,0.00013794,2]
[422986008,1779711042000,-7080.6807807,0.00013884,2]
[422986021,1779711042000,-3944.34516216,0.00013976,2]
[422986022,1779711042000,-310.00350003,0.00013982,2]
[422986006,1779711042000,-10092.57380919,0.00013868,2]
[422986020,1779711042000,-5000.0,0.00013976,2]
[422986017,1779711042000,-2500.0,0.00013975,2]
[422986016,1779711042000,-166.66,0.00013973,2]
[422986019,1779711042000,-4173.0173,0.00013976,2]
[422986015,1779711042000,-150.0,0.00013916,2]
[422986011,1779711042000,-238.695986,0.000139,2]
[422986014,1779711042000,-151.0,0.000139,2]
[422986010,1779711042000,-2600.0,0.000139,5]
[422986018,1779711042000,-412.79675156,0.00013976,2]
[422986025,1779711042000,-165.534,0.00013987,2]
[422986054,1779711043000,-500.0,0.00014075,2]
[422986060,1779711043000,-745.79309827,0.00014076,2]
[422986059,1779711043000,-840.0,0.00014076,2]
[422986058,1779711043000,-1207300.74011558,0.00014076,2]
[422986057,1779711043000,-150.0,0.00014076,2]
[422986056,1779711043000,-1654.0,0.00014076,5]
[422986055,1779711043000,-500.0,0.00014075,2]
[422986069,1779711046000,-983.0007,0.00014076,2]
[422986068,1779711046000,-617.9993,0.00012588,2]
[422986072,1779711249000,157.03,6.649e-05,2]
[422986079,1779712008000,-250.0,9.944e-05,2]
[422986080,1779712008000,-1200.0,0.0001094,2]
[422986081,1779712008000,-1040.66195253,0.00010941,2]
[422986078,1779712008000,-2742.8267586,9.04e-05,2]
[422986077,1779712008000,-500.0,8.94e-05,2]
[422986082,1779712021000,191.6164466,8.8e-05,2]
[422986097,1779712237000,-666.19506821,0.00010941,2]
[422986096,1779712237000,-150.43,9.992e-05,2]
[422986142,1779712238000,-454.15480936,0.00012269,2]
[422986143,1779712238000,-52.12556951,0.00012269,2]
[422986145,1779712238000,-4999.99,0.0001227,2]
[422986146,1779712238000,-999.99,0.0001227,2]
[422986150,1779712238000,-9999.99,0.00012436,2]
[422986149,1779712238000,-299.99,0.00012436,2]
[422986147,1779712238000,-152.0,0.00012387,7]
[422986144,1779712238000,-16615.0,0.0001227,2]
[422986151,1779712238000,-9999.99,0.00012436,2]
[422986148,1779712238000,-249.0,0.00012436,2]
[422986138,1779712238000,-207.46410557,0.00012269,2]
[422986104,1779712238000,-250.0,0.00012035,2]
[422986140,1779712238000,-150.0,0.00012269,2]
[422986139,1779712238000,-300.0,0.00012269,2]
[422986105,1779712238000,-92.53589443,0.00012269,2]
[422986101,1779712238000,-160.0,0.00011003,2]
[422986103,1779712238000,-250.0,0.00012035,2]
[422986102,1779712238000,-646.37054281,0.000114,2]
[422986099,1779712238000,-2153.10145498,0.00010941,2]
[422986100,1779712238000,-250.0,0.00010991,2]
[422986098,1779712238000,-1834.37402428,0.00010941,2]
[422986152,1779712238000,-1439.12,0.00012509,2]
[422986141,1779712238000,-693.71962113,0.00012269,2]
[422986157,1779712238000,-215.38528485,0.00012768,2]
[422986162,1779712238000,-800.0,0.00012857,2]
[422986155,1779712238000,-1051.17,0.00012606,2]
[422986153,1779712238000,-1346.18,0.00012509,2]
[422986191,1779712238000,-500.0,0.00013452,5]
[422986197,1779712238000,-500.0,0.00013452,5]
[422986199,1779712238000,-647.0,0.00013452,5]
[422986195,1779712238000,-500.0,0.00013452,5]
[422986188,1779712238000,-647.0,0.00013452,5]
[422986193,1779712238000,-647.0,0.00013452,5]
[422986184,1779712238000,-827.18086267,0.0001345,2]
[422986182,1779712238000,-263.39072739,0.0001345,2]
[422986180,1779712238000,-370.65417125,0.0001345,2]
[422986176,1779712238000,-500.0,0.00013355,2]
[422986186,1779712238000,-933.69403119,0.0001345,2]
[422986174,1779712238000,-500.0,0.00013355,2]
[422986172,1779712238000,-1100.0,0.00013355,2]
[422986168,1779712238000,-200.0,0.0001317,2]
[422986166,1779712238000,-1439.12,0.00013135,2]
[422986170,1779712238000,-1852.42,0.00013296,2]
[422986164,1779712238000,-150.0,0.00012927,2]
[422986160,1779712238000,-1439.12,0.00012822,2]
[422986156,1779712238000,-150.0,0.00012606,2]
[422986154,1779712238000,-546.14,0.00012551,2]
[422986178,1779712238000,-1439.12,0.00013447,2]
[422986158,1779712238000,-208.87966228,0.00012768,2]
[422986280,1779712239000,-500.0,0.00013452,5]
[422986278,1779712239000,-500.0,0.00013452,5]
[422986272,1779712239000,-500.0,0.00013452,5]
[422986270,1779712239000,-647.0,0.00013452,5]
[422986264,1779712239000,-647.0,0.00013452,5]
[422986274,1779712239000,-500.0,0.00013452,5]
[422986268,1779712239000,-500.0,0.00013452,5]
[422986266,1779712239000,-500.0,0.00013452,5]
[422986258,1779712239000,-647.0,0.00013452,5]
[422986293,1779712239000,-500.0,0.00013452,5]
[422986276,1779712239000,-647.0,0.00013452,5]
[422986295,1779712239000,-500.0,0.00013452,5]
[422986305,1779712239000,-647.0,0.00013452,5]
[422986286,1779712239000,-500.0,0.00013452,5]
[422986301,1779712239000,-420.35412542,0.00013452,5]
[422986297,1779712239000,-647.0,0.00013452,5]
[422986288,1779712239000,-502.58686962,0.00013452,5]
[422986299,1779712239000,-500.0,0.00013452,5]
[422986284,1779712239000,-647.0,0.00013452,5]
[422986303,1779712239000,-647.0,0.00013452,5]
[422986307,1779712239000,-500.0,0.00013452,5]
[422986290,1779712239000,-647.0,0.00013452,5]
[422986260,1779712239000,-647.0,0.00013452,5]
[422986309,1779712239000,-500.0,0.00013452,5]
[422986321,1779712239000,-150.0,0.00013488,2]
[422986319,1779712239000,-251.37092639,0.00013488,2]
[422986323,1779712239000,-150.0,0.00013488,2]
[422986282,1779712239000,-500.0,0.00013452,5]
[422986262,1779712239000,-500.0,0.00013452,5]
[422986242,1779712239000,-192.52430018,0.00013452,5]
[422986253,1779712239000,-150.0,0.00013452,5]
[422986327,1779712239000,-150.0,0.00013488,2]
[422986202,1779712239000,-150.0,0.00013452,2]
[422986204,1779712239000,-500.0,0.00013452,5]
[422986206,1779712239000,-647.0,0.00013452,5]
[422986208,1779712239000,-500.0,0.00013452,5]
[422986212,1779712239000,-500.0,0.00013452,5]
[422986214,1779712239000,-500.0,0.00013452,5]
[422986210,1779712239000,-500.0,0.00013452,5]
[422986216,1779712239000,-150.0,0.00013452,5]
[422986218,1779712239000,-500.0,0.00013452,5]
[422986222,1779712239000,-500.0,0.00013452,5]
[422986228,1779712239000,-500.0,0.00013452,5]
[422986226,1779712239000,-500.0,0.00013452,5]
[422986224,1779712239000,-150.0,0.00013452,5]
[422986230,1779712239000,-150.0,0.00013452,5]
[422986234,1779712239000,-500.0,0.00013452,5]
[422986232,1779712239000,-500.0,0.00013452,5]
[422986238,1779712239000,-500.0,0.00013452,5]
[422986240,1779712239000,-500.0,0.00013452,5]
[422986244,1779712239000,-207.06787103,0.00013452,5]
[422986254,1779712239000,-647.0,0.00013452,5]
[422986236,1779712239000,-150.0,0.00013452,5]
[422986256,1779712239000,-154.33010067,0.00013452,5]
[422986246,1779712239000,-500.0,0.00013452,5]
[422986252,1779712239000,-647.0,0.00013452,5]
[422986248,1779712239000,-647.0,0.00013452,5]
[422986250,1779712239000,-150.0,0.00013452,5]
[422986251,1779712239000,-569.87645658,0.00013452,5]
[422986317,1779712239000,-150.0,0.00013488,2]
[422986408,1779712239000,-500.0,0.00013708,2]
[422986311,1779712239000,-501.07256824,0.00013452,5]
[422986402,1779712239000,-500.0,0.00013708,2]
[422986399,1779712239000,-500.0,0.00013708,2]
[422986404,1779712239000,-500.0,0.00013708,2]
[422986388,1779712239000,-150.0,0.00013702,2]
[422986391,1779712239000,-150.0,0.00013708,2]
[422986406,1779712239000,-500.0,0.00013708,2]
[422986410,1779712239000,-500.0,0.00013708,2]
[422986415,1779712239000,-305.0,0.00013708,2]
[422986419,1779712239000,-150.0,0.00013708,2]
[422986418,1779712239000,-356.0,0.00013708,2]
[422986412,1779712239000,-500.0,0.00013708,2]
[422986427,1779712239000,-250.0,0.00013708,2]
[422986425,1779712239000,-150.0,0.00013708,2]
[422986423,1779712239000,-150.0,0.00013708,2]
[422986421,1779712239000,-150.0,0.00013708,2]
[422986429,1779712239000,-1300.0,0.000138,5]
[422986428,1779712239000,-1439.12,0.0001376,2]
[422986431,1779712239000,-150.0,0.00013862,2]